fUSD/lending_fUSD_20260301
["ID","MTS","AMOUNT","RATE_DAILY","PERIOD"]
[406965954,1772367042441,-500.0,0.000178,6]
[406965955,1772367042450,-5000.0,0.00017808,2]
[406965957,1772367042459,-500.0,0.00017808,2]
[406965959,1772367042470,-800.0,0.00017808,2]
[406965960,1772367042480,-150.0,0.00017809,2]
[406965961,1772367042490,-150.0,0.00017826,2]
[406965962,1772367042499,-150.0,0.00017829,2]
[406965963,1772367042509,-77746.49848454,0.0001783,2]
[406965964,1772367042519,-500.0,0.00017863,2]
[406965965,1772367042529,-150.0,0.00017871,2]
[406965966,1772367042539,-150.0,0.00017871,2]
[406965967,1772367042550,-150.0,0.00017875,2]
[406965969,1772367042560,-150.0,0.00017887,2]
[406965970,1772367042569,-9513.76910097,0.000179,2]
[406965972,1772367042580,-4300.0,0.000179,6]
[406965974,1772367042589,-19664.25843617,0.000179,2]
[406965976,1772367042599,-1838.48096911,0.000179,2]
[406965977,1772367042609,-500.0,0.000179,6]
[406965978,1772367042619,-2801.64874579,0.000179,2]
[406965979,1772367042628,-167.33799581,0.000179,2]
[406965980,1772367042638,-7122.0,0.000179,2]
[406965981,1772367042649,-150.0,0.00017907,2]
[406965982,1772367042658,-150.0,0.00017907,2]
[406965983,1772367042667,-500.0,0.00017918,2]
[406965984,1772367042676,-150.0,0.00017918,2]
[406965985,1772367042686,-150.0,0.00017927,2]
[406965986,1772367042696,-150.0,0.00017929,2]
[406965988,1772367042706,-150.0,0.00017935,2]
[406965990,1772367042715,-150.0,0.00017936,2]
[406965992,1772367042725,-150.0,0.00017952,2]
[406965993,1772367042735,-1927.5194114,0.00017963,2]
[406965994,1772367042745,-7950.3084396,0.00017963,2]
[406965995,1772367042754,-137513.3904717,0.00017963,2]
[406965996,1772367042763,-3280.1287016,0.00017963,2]
[406965997,1772367042773,-2147.9595016,0.00017963,2]
[406965998,1772367042783,-29671.667206,0.00017963,2]
[406965999,1772367042792,-168.0,0.00017965,2]
[406966000,1772367042801,-150.0,0.00017969,2]
[406966001,1772367042810,-150.0,0.0001797,2]
[406966002,1772367042820,-500.0,0.00017972,2]
[406966003,1772367042830,-262.37880002,0.0001799,2]
[406966004,1772367042839,-262.37880002,0.0001799,2]
[406966005,1772367042848,-150.0,0.00017997,2]
[406966006,1772367042858,-287.24701665,0.00017999,2]
[406966007,1772367042868,-300.0,0.00017999,2]
[406966008,1772367042878,-300.0,0.00017999,2]
[406966009,1772367042887,-300.0,0.00017999,2]
[406966010,1772367042896,-150.0,0.00017999,2]
[406966011,1772367042905,-194.60529153,0.00017999,2]
[406966012,1772367042918,-200.0,0.00018,2]
[406966013,1772367042927,-150.0,0.00018,2]
[406966014,1772367042936,-200.0,0.00018,2]
[406966015,1772367042945,-150.0,0.00018,2]
[406966016,1772367042955,-150.141,0.00018,2]
[406966017,1772367042964,-150.0,0.00018,2]
[406966018,1772367042973,-150.0,0.00018,2]
[406966019,1772367042983,-150.0,0.00018,2]
[406966021,1772367042993,-150.126,0.00018,2]
[406966023,1772367043002,-150.0,0.00018,2]
[406966024,1772367043011,-3500.0,0.00018,2]
[406966025,1772367043020,-1340.0,0.00018,2]
[406966026,1772367043029,-619.0,0.00018,2]
[406966027,1772367043039,-1278.0,0.00018,2]
[406966028,1772367043048,-150.0,0.00018,2]
[406966029,1772367043056,-1211.0,0.00018,2]
[406966030,1772367043066,-921.0,0.00018,2]
[406966031,1772367043075,-2457.0,0.00018,2]
[406966032,1772367043085,-4575.0,0.00018,2]
[406966033,1772367043094,-5985.0,0.00018,2]
[406966034,1772367043103,-257352.74997769,0.00018,2]
[406966035,1772367043112,-311300.27204649,0.00018,2]
[406966036,1772367043121,-160.0,0.00018,2]
[406966037,1772367043130,-150.0,0.00018,7]
[406966038,1772367043139,-507.467,0.00018,2]
[406966039,1772367043149,-250.0,0.00018,2]
[406966040,1772367043158,-150.0,0.00018,2]
[406966041,1772367043167,-11669.4362781,0.00018,2]
[406966042,1772367043176,-6151007.6718965,0.00018,2]
[406966043,1772367043229,-1274.0,0.00017528,2]
[406966044,1772367043238,-370.16962066,0.000179,2]
[406966045,1772367043247,-33022.13037934,0.00018,2]
[406966050,1772367045977,-500.0,0.00015534,2]
[406966051,1772367045987,-32.4,0.00018,2]
[406966077,1772368141083,150.53,6.149e-05,2]
[406966078,1772368231728,-154.51527345,0.0001149,2]
[406966079,1772368231737,-522.40477574,0.00011507,2]
[406966080,1772368231785,-1678.98522426,0.00011507,2]
[406966081,1772368231794,-11.00661653,0.000116,4]
[406966082,1772368231896,-1228.70968045,0.000116,4]
[406966095,1772368240120,-160.28370302,0.000116,4]
[406966096,1772368240130,-200.0,0.000116,4]
[406966097,1772368240139,-300.0,0.00011699,2]
[406966098,1772368240148,-2800.0,0.000117,4]
[406966099,1772368240158,-500.0,0.000117,4]
[406966100,1772368240167,-4200.0,0.000118,4]
[406966101,1772368240177,-800.0,0.000118,4]
[406966102,1772368240186,-5600.0,0.000119,4]
[406966103,1772368240195,-1100.0,0.000119,4]
[406966104,1772368240205,-150.0,0.00012082,2]
[406966105,1772368240214,-8413.7705,0.00012208,2]
[406966106,1772368240233,-170.67454804,0.00012244,2]
[406966107,1772368240243,-459.62024233,0.00012244,2]
[406966108,1772368240253,-2406.13876194,0.00012244,2]
[406966109,1772368240262,-3932.85168727,0.00012244,2]
[406966110,1772368240272,-200.0,0.00012271,2]
[406966111,1772368240284,-1792.513,0.00012298,2]
[406966112,1772368240294,-179.744,0.00012298,2]
[406966113,1772368240304,-174.91920001,0.00012298,2]
[406966114,1772368240318,-212.81,0.00012301,2]
[406966115,1772368240328,-151.0,0.00012301,2]
[406966116,1772368240338,-151.0,0.00012301,2]
[406966117,1772368240348,-151.0,0.00012301,2]
[406966118,1772368240358,-151.0,0.00012301,2]
[406966119,1772368240368,-151.0,0.00012301,2]
[406966120,1772368240378,-151.0,0.00012301,2]
[406966121,1772368240388,-151.0,0.00012301,2]
[406966122,1772368240398,-151.0,0.00012301,2]
[406966123,1772368240408,-151.0,0.00012301,2]
[406966124,1772368240418,-151.0,0.00012301,2]
[406966125,1772368240427,-151.0,0.00012301,2]
[406966126,1772368240437,-151.0,0.00012301,2]
[406966127,1772368240447,-151.0,0.00012301,2]
[406966128,1772368240456,-151.0,0.00012301,2]
[406966129,1772368240466,-151.0,0.00012301,2]
[406966130,1772368240476,-151.0,0.00012301,2]
[406966131,1772368240485,-151.0,0.00012301,2]
[406966132,1772368240495,-151.0,0.00012301,2]
[406966133,1772368240505,-151.0,0.00012301,2]
[406966134,1772368240514,-151.0,0.00012301,2]
[406966135,1772368240523,-151.0,0.00012301,2]
[406966136,1772368240532,-151.0,0.00012301,2]
[406966137,1772368240541,-151.0,0.00012301,2]
[406966138,1772368240551,-151.0,0.00012301,2]
[406966139,1772368240560,-151.0,0.00012301,2]
[406966140,1772368240570,-151.0,0.00012301,2]
[406966141,1772368240579,-151.0,0.00012301,2]
[406966142,1772368240589,-151.0,0.00012301,2]
[406966143,1772368240598,-151.0,0.00012301,2]
[406966144,1772368240607,-151.0,0.00012301,2]
[406966145,1772368240617,-151.0,0.00012301,2]
[406966146,1772368240627,-151.0,0.00012301,2]
[406966147,1772368240637,-151.0,0.00012301,2]
[406966148,1772368240646,-500.0,0.00012301,2]
[406966149,1772368240655,-500.0,0.00012301,2]
[406966150,1772368240664,-500.0,0.00012301,2]
[406966151,1772368240674,-500.0,0.00012301,2]
[406966152,1772368240683,-500.0,0.00012301,2]
[406966153,1772368240692,-500.0,0.00012301,2]
[406966154,1772368240702,-500.0,0.00012301,2]
[406966155,1772368240711,-500.0,0.00012301,2]
[406966156,1772368240721,-500.0,0.00012301,2]
[406966157,1772368240731,-500.0,0.00012301,2]
[406966158,1772368240740,-500.0,0.00012301,2]
[406966159,1772368240750,-500.0,0.00012301,2]
[406966160,1772368240760,-500.0,0.00012301,2]
[406966161,1772368240769,-382.07216411,0.00012307,2]
[406966162,1772368240783,-500.0,0.00012307,2]
[406966163,1772368240792,-211.07801729,0.00012307,2]
[406966164,1772368240801,-500.0,0.00012307,2]
[406966165,1772368240811,-500.0,0.00012307,2]
[406966166,1772368240820,-356.20278891,0.00012307,2]
[406966167,1772368240830,-579.85041719,0.00012307,2]
[406966168,1772368240839,-579.85041719,0.00012307,2]
[406966169,1772368240849,-579.85041719,0.00012307,2]
[406966170,1772368240858,-579.85041719,0.00012307,2]
[406966171,1772368240868,-579.85041719,0.00012307,2]
[406966172,1772368240878,-579.85041719,0.00012307,2]
[406966173,1772368240888,-579.85041719,0.00012307,2]
[406966174,1772368240898,-579.85041719,0.00012307,2]
[406966175,1772368240907,-579.85041719,0.00012307,2]
[406966176,1772368240917,-579.85041719,0.00012307,2]
[406966177,1772368240927,-579.85041719,0.00012307,2]
[406966178,1772368240937,-579.85041719,0.00012307,2]
[406966179,1772368240946,-579.85041719,0.00012307,2]
[406966180,1772368240956,-579.85041719,0.00012307,2]
[406966181,1772368240965,-579.85041719,0.00012307,2]
[406966182,1772368240975,-579.85041719,0.00012307,2]
[406966183,1772368240985,-579.85041719,0.00012307,2]
[406966184,1772368240994,-579.85041719,0.00012307,2]
[406966185,1772368241003,-579.85041719,0.00012307,2]
[406966186,1772368241013,-579.85041719,0.00012307,2]
[406966187,1772368241023,-579.85041719,0.00012307,2]
[406966188,1772368241033,-579.85041719,0.00012307,2]
[406966189,1772368241043,-579.85041719,0.00012307,2]
[406966190,1772368241053,-579.85041719,0.00012307,2]
[406966191,1772368241063,-579.85041719,0.00012307,2]
[406966192,1772368241073,-579.85041719,0.00012307,2]
[406966193,1772368241083,-579.85041719,0.00012307,2]
[406966194,1772368241092,-579.85041719,0.00012307,2]
[406966195,1772368241102,-579.85041719,0.00012307,2]
[406966196,1772368241113,-579.85041719,0.00012307,2]
[406966197,1772368241123,-579.85041719,0.00012307,2]
[406966198,1772368241133,-579.85041719,0.00012307,2]
[406966199,1772368241142,-579.85041719,0.00012307,2]
[406966200,1772368241152,-579.85041719,0.00012307,2]
[406966201,1772368241173,-579.85041719,0.00012307,2]
[406966202,1772368241183,-579.85041719,0.00012307,2]
[406966203,1772368241201,-579.85041719,0.00012307,2]
[406966204,1772368241218,-579.85041719,0.00012307,2]
[406966205,1772368241234,-579.85041719,0.00012307,2]
[406966206,1772368241244,-579.85041719,0.00012307,2]
[406966207,1772368241253,-579.85041719,0.00012307,2]
[406966208,1772368241265,-579.85041719,0.00012307,2]
[406966209,1772368241275,-579.85041719,0.00012307,2]
[406966210,1772368241285,-579.85041719,0.00012307,2]
[406966211,1772368241294,-579.85041719,0.00012307,2]
[406966212,1772368241303,-579.85041719,0.00012307,2]
[406966213,1772368241317,-579.85041719,0.00012307,2]
[406966214,1772368241327,-579.85041719,0.00012307,2]
[406966215,1772368241337,-579.85041719,0.00012307,2]
[406966216,1772368241347,-579.85041719,0.00012307,2]
[406966217,1772368241362,-579.85041719,0.00012307,2]
[406966218,1772368241372,-579.85041719,0.00012307,2]
[406966219,1772368241383,-579.85041719,0.00012307,2]
[406966220,1772368241393,-579.85041719,0.00012307,2]
[406966221,1772368241403,-579.85041719,0.00012307,2]
[406966222,1772368241414,-567.91232036,0.00012307,2]
[406966223,1772368241424,-567.91232036,0.00012307,2]
[406966224,1772368241433,-567.91232036,0.00012307,2]
[406966225,1772368241444,-567.91232036,0.00012307,2]
[406966226,1772368241454,-567.91232036,0.00012307,2]
[406966227,1772368241464,-567.91232036,0.00012307,2]
[406966228,1772368241473,-567.91232036,0.00012307,2]
[406966229,1772368241483,-567.91232036,0.00012307,2]
[406966230,1772368241492,-567.91232036,0.00012307,2]
[406966231,1772368241502,-567.91232036,0.00012307,2]
[406966232,1772368241511,-567.91232036,0.00012307,2]
[406966233,1772368241520,-567.91232036,0.00012307,2]
[406966234,1772368241531,-567.91232036,0.00012307,2]
[406966235,1772368241541,-567.91232036,0.00012307,2]
[406966236,1772368241550,-567.91232036,0.00012307,2]
[406966237,1772368241560,-567.91232036,0.00012307,2]
[406966238,1772368241570,-567.91232036,0.00012307,2]
[406966239,1772368241581,-567.91232036,0.00012307,2]
[406966240,1772368241592,-567.91232036,0.00012307,2]
[406966241,1772368241602,-567.91232036,0.00012307,2]
[406966242,1772368241611,-567.91232036,0.00012307,2]
[406966243,1772368241625,-567.91232036,0.00012307,2]
[406966244,1772368241635,-567.91232036,0.00012307,2]
[406966245,1772368241826,-567.91232036,0.00012307,2]
[406966246,1772368241836,-567.91232036,0.00012307,2]
[406966247,1772368241845,-567.91232036,0.00012307,2]
[406966248,1772368241855,-567.91232036,0.00012307,2]
[406966249,1772368241864,-567.91232036,0.00012307,2]
[406966250,1772368241875,-567.91232036,0.00012307,2]
[406966251,1772368241886,-567.91232036,0.00012307,2]
[406966252,1772368241897,-567.91232036,0.00012307,2]
[406966253,1772368241908,-567.91232036,0.00012307,2]
[406966254,1772368241918,-567.91232036,0.00012307,2]
[406966255,1772368241927,-567.9123205,0.00012307,2]
[406966256,1772368241937,-201619.60213324,0.00012308,2]
[406966257,1772368241952,-2298380.39786676,0.00012308,2]
[406966258,1772368241961,-12316.36,0.00012344,2]
[406966259,1772368241970,-8654.85,0.00012431,2]
[406966260,1772368241979,-212.81,0.00012575,2]
[406966261,1772368241988,-239.81590501,0.00012597,2]
[406966262,1772368241997,-500.0,0.0001262,2]
[406966263,1772368242006,-250.0,0.0001262,2]
[406966264,1772368242018,-195.0,0.0001262,2]
[406966265,1772368242027,-193.0,0.00012639,2]
[406966266,1772368242037,-300.0,0.00012639,2]
[406966267,1772368242046,-300.0,0.00012639,2]
[406966268,1772368242055,-420.0,0.00012847,2]
[406966269,1772368242066,-212.82,0.00012849,2]
[406966270,1772368242082,-2406.13876194,0.00012872,2]
[406966271,1772368242091,-3932.85168723,0.00012872,2]
[406966272,1772368242101,-150.99,0.00012893,2]
[406966273,1772368242110,-716.48,0.00012893,2]
[406966274,1772368242119,-9999.99,0.00012893,2]
[406966275,1772368242128,-8712.46,0.00012893,2]
[406966276,1772368242137,-6580.04,0.00012893,2]
[406966277,1772368242146,-459.62024227,0.00013052,2]
[406966278,1772368242155,-150.0,0.00013119,2]
[406966279,1772368242165,-2406.13876194,0.00013501,2]
[406966280,1772368242173,-459.62024227,0.0001386,2]
[406966281,1772368242183,-587.0,0.00014107,2]
[406966282,1772368242192,-519.0,0.0001411,2]
[406966283,1772368242201,-2406.13876194,0.00014129,2]
[406966284,1772368242212,-250.0,0.00014495,2]
[406966285,1772368242222,-459.62024227,0.00014668,2]
[406966286,1772368242231,-2406.13876194,0.00014758,2]
[406966287,1772368242241,-900.0,0.00015068,2]
[406966288,1772368242251,-170.67454802,0.00015072,2]
[406966289,1772368242260,-500.0,0.00015178,2]
[406966290,1772368242269,-1000.0,0.0001523,2]
[406966291,1772368242278,-2406.13876194,0.00015386,2]
[406966292,1772368242288,-459.62024227,0.00015476,2]
[406966293,1772368242297,-823.0,0.00015491,2]
[406966294,1772368242309,-4000.0,0.00015911,2]
[406966295,1772368242319,-2406.13876194,0.00016015,2]
[406966296,1772368242327,-962.05876022,0.00016029,2]
[406966297,1772368242337,-500.0,0.0001611,2]
[406966298,1772368242346,-7960.06,0.00016116,2]
[406966299,1772368242358,-166.8729219,0.00016129,2]
[406966300,1772368242367,-933.88291527,0.00016129,2]
[406966301,1772368242379,-167.33799581,0.00016129,2]
[406966302,1772368242388,-459.62024227,0.00016284,2]
[406966303,1772368242398,-4000.0,0.00016309,2]
[406966304,1772368242408,-500.0,0.00016356,2]
[406966305,1772368242418,-800.0,0.00016356,2]
[406966306,1772368242428,-600.0,0.00016356,2]
[406966307,1772368242437,-153.04785948,0.00016358,2]
[406966308,1772368242447,-900.0,0.00016438,2]
[406966309,1772368242456,-2000.0,0.00016438,2]
[406966310,1772368242470,-1640.84,0.00016469,2]
[406966311,1772368242479,-162.41,0.00016482,2]
[406966312,1772368242489,-174.09452548,0.00016557,2]
[406966313,1772368242498,-160.0,0.00016557,2]
[406966314,1772368242507,-4000.0,0.00016707,2]
[406966315,1772368242517,-663.0,0.00016712,2]
[406966316,1772368242526,-166.4,0.00016712,2]
[406966317,1772368242536,-845.0,0.0001672,2]
[406966318,1772368242546,-663.0,0.00016767,2]
[406966319,1772368242555,-2000.0,0.000168,2]
[406966320,1772368242564,-663.0,0.00016822,2]
[406966321,1772368242573,-663.0,0.00016876,2]
[406966322,1772368242582,-663.0,0.00016931,2]
[406966323,1772368242591,-962.05876022,0.00016965,2]
[406966324,1772368242601,-1600.0,0.00016977,2]
[406966325,1772368242611,-663.0,0.00016986,2]
[406966326,1772368242621,-2000.0,0.0001701,2]
[406966327,1772368242630,-390.0,0.00017011,2]
[406966328,1772368242640,-933.88291526,0.00017015,2]
[406966330,1772368242649,-1639.0,0.0001704,2]
[406966331,1772368242658,-845.0,0.0001704,2]
[406966332,1772368242668,-663.0,0.00017041,2]
[406966333,1772368242677,-459.62024227,0.00017092,2]
[406966334,1772368242687,-663.0,0.00017096,2]
[406966335,1772368242697,-644.79446246,0.00017099,2]
[406966336,1772368242706,-578.20924308,0.00017099,2]
[406966337,1772368242715,-151.0,0.00017099,2]
[406966338,1772368242724,-500.0,0.00017099,2]
[406966339,1772368242733,-500.0,0.00017099,2]
[406966340,1772368242743,-500.0,0.00017099,2]
[406966341,1772368242753,-500.0,0.00017099,2]
[406966342,1772368242762,-500.0,0.00017099,2]
[406966343,1772368242771,-500.0,0.00017099,2]
[406966344,1772368242781,-500.0,0.00017099,2]
[406966345,1772368242791,-500.0,0.00017099,2]
[406966346,1772368242800,-500.0,0.00017099,2]
[406966348,1772368242810,-500.0,0.00017099,2]
[406966351,1772368242819,-500.0,0.00017099,2]
[406966354,1772368242828,-500.0,0.00017099,2]
[406966357,1772368242838,-500.0,0.00017099,2]
[406966359,1772368242847,-158.373817,0.000171,2]
[406966360,1772368242856,-4000.0,0.00017104,2]
[406966362,1772368242866,-168.0,0.00017106,2]
[406966366,1772368242876,-171.2232,0.0001711,2]
[406966369,1772368242885,-171.2232,0.0001711,2]
[406966372,1772368242894,-171.2232,0.0001711,2]
[406966374,1772368242904,-171.2232,0.0001711,2]
[406966376,1772368242913,-171.2232,0.0001711,2]
[406966378,1772368242923,-171.2232,0.0001711,2]
[406966380,1772368242932,-1000.0,0.00017134,2]
[406966381,1772368242941,-663.0,0.0001715,2]
[406966382,1772368242951,-668.65185757,0.00017154,2]
[406966383,1772368242963,-151.0,0.00017154,2]
[406966384,1772368242973,-2000.0,0.000172,2]
[406966385,1772368242983,-663.0,0.00017205,2]
[406966386,1772368242992,-693.3919763,0.00017209,2]
[406966387,1772368243002,-151.0,0.00017209,2]
[406966388,1772368243012,-663.0,0.0001726,2]
[406966389,1772368243021,-719.04747942,0.00017264,2]
[406966390,1772368243031,-151.0,0.00017264,2]
[406966391,1772368243040,-663.0,0.00017315,2]
[406966392,1772368243050,-745.65223616,0.00017319,2]
[406966393,1772368243059,-663.0,0.0001737,2]
[406966394,1772368243069,-773.2413689,0.00017374,2]
[406966395,1772368243078,-663.0,0.00017424,2]
[406966396,1772368243088,-801.85129955,0.00017429,2]
[406966397,1772368243097,-663.0,0.00017479,2]
[406966398,1772368243106,-831.51979763,0.00017484,2]
[406966399,1772368243116,-4000.0,0.00017502,2]
[406966400,1772368243125,-1337.0,0.00017528,2]
[406966401,1772368243135,-796.0,0.00017528,2]
[406966402,1772368243144,-663.0,0.00017534,2]
[406966403,1772368243153,-862.28603014,0.00017539,2]
[406966404,1772368243162,-168.0,0.00017573,2]
[406966405,1772368243172,-663.0,0.00017589,2]
[406966406,1772368243181,-894.19061326,0.00017594,2]
[406966407,1772368243193,-7000.0,0.000176,6]
[406966408,1772368243203,-1400.0,0.000176,6]
[406966409,1772368243213,-291.0,0.00017632,2]
[406966410,1772368243223,-1647.23848094,0.0001764,2]
[406966411,1772368243233,-663.0,0.00017644,2]
[406966412,1772368243243,-927.27566595,0.00017649,2]
[406966413,1772368243253,-500.0,0.00017671,2]
[406966414,1772368243263,-160.0,0.0001768,2]
[406966415,1772368243272,-663.0,0.00017698,2]
[406966416,1772368243282,-1625.807964,0.00017699,7]
[406966417,1772368243292,-5430.44361,0.00017699,7]
[406966418,1772368243302,-1400.0,0.000177,6]
[406966419,1772368243315,-200.0,0.000177,6]
[406966420,1772368243325,-961.58486559,0.00017704,2]
[406966421,1772368243335,-800.0,0.00017726,7]
[406966422,1772368243344,-600.0,0.00017726,7]
[406966423,1772368243355,-150.0,0.00017732,2]
[406966424,1772368243365,-219.48353704,0.00017736,2]
[406966425,1772368243375,-150.0,0.00017738,2]
[406966426,1772368243395,-150.0,0.0001774,2]
[406966427,1772368243405,-150.0,0.00017748,2]
[406966428,1772368243414,-663.0,0.00017753,2]
[406966429,1772368243424,-363.44896243,0.00017758,7]
[406966430,1772368243433,-150.0,0.00017759,2]
[406966431,1772368243443,-997.16350561,0.00017759,2]
[406966432,1772368243453,-150.0,0.00017762,2]
[406966433,1772368243462,-150.0,0.00017765,2]
[406966435,1772368243472,-150.0,0.00017769,2]
[406966437,1772368243484,-150.0,0.00017778,2]
[406966438,1772368243493,-150.0,0.00017784,2]
[406966439,1772368243505,-150.0,0.00017785,2]
[406966440,1772368243515,-1064.10719964,0.00017788,2]
[406966441,1772368243524,-150.0,0.00017794,2]
[406966442,1772368243533,-1400.0,0.000178,6]
[406966443,1772368243543,-200.0,0.000178,6]
[406966444,1772368243553,-663.0,0.00017808,2]
[406966445,1772368243563,-500.0,0.00017808,2]
[406966446,1772368243573,-500.0,0.00017808,2]
[406966447,1772368243583,-500.0,0.00017808,2]
[406966448,1772368243592,-500.0,0.00017808,2]
[406966449,1772368243602,-500.0,0.00017808,2]
[406966450,1772368243622,-500.0,0.00017808,2]
[406966451,1772368243632,-500.0,0.00017808,2]
[406966452,1772368243643,-500.0,0.00017808,2]
[406966453,1772368243652,-500.0,0.00017808,2]
[406966454,1772368243662,-500.0,0.00017808,2]
[406966455,1772368243672,-500.0,0.00017808,2]
[406966456,1772368243682,-500.0,0.00017808,2]
[406966457,1772368243692,-500.0,0.00017808,2]
[406966458,1772368243702,-500.0,0.00017808,2]
[406966459,1772368243711,-500.0,0.00017808,2]
[406966460,1772368243721,-500.0,0.00017808,2]
[406966461,1772368243731,-500.0,0.00017808,2]
[406966462,1772368243741,-500.0,0.00017808,2]
[406966463,1772368243751,-500.0,0.00017808,2]
[406966464,1772368243760,-500.0,0.00017808,2]
[406966465,1772368243770,-500.0,0.00017808,2]
[406966466,1772368243780,-228.12644178,0.00017808,2]
[406966467,1772368243790,-5000.0,0.00017808,2]
[406966468,1772368243800,-500.0,0.00017808,2]
[406966469,1772368243810,-800.0,0.00017808,2]
[406966470,1772368243820,-150.0,0.0001781,2]
[406966471,1772368243830,-77746.49848454,0.0001783,2]
[406966472,1772368243839,-150.0,0.00017836,2]
[406966473,1772368243849,-150.0,0.00017842,2]
[406966474,1772368243859,-150.0,0.00017847,2]
[406966475,1772368243868,-162.41,0.00017856,2]
[406966476,1772368243878,-151.0,0.00017857,2]
[406966477,1772368243888,-45000.0,0.0001786,2]
[406966478,1772368243897,-663.0,0.00017863,2]
[406966479,1772368243907,-500.0,0.00017863,2]
[406966480,1772368243917,-150.0,0.00017863,2]
[406966481,1772368243927,-150.0,0.0001788,2]
[406966482,1772368243937,-150.0,0.00017888,2]
[406966483,1772368243947,-150.0,0.00017889,2]
[406966484,1772368243957,-32891.4421,0.000179,2]
[406966485,1772368243967,-1000.0,0.000179,2]
[406966486,1772368243977,-10000.0,0.000179,2]
[406966487,1772368243986,-170.67454802,0.000179,2]
[406966488,1772368243995,-1400.0,0.000179,6]
[406966489,1772368244005,-200.0,0.000179,6]
[406966490,1772368244015,-459.62024227,0.000179,2]
[406966491,1772368244025,-933.88291526,0.000179,2]
[406966492,1772368244035,-962.05876022,0.000179,2]
[406966493,1772368244045,-7130.0,0.000179,2]
[406966494,1772368244054,-663.0,0.00017917,2]
[406966495,1772368244064,-500.0,0.00017918,2]
[406966496,1772368244074,-168.0,0.00017946,2]
[406966497,1772368244083,-168.0,0.00017952,2]
[406966498,1772368244093,-150.0,0.00017952,2]
[406966499,1772368244103,-150.0,0.00017955,2]
[406966500,1772368244112,-3026.1727142,0.00017963,2]
[406966501,1772368244122,-150.0,0.00017972,2]
[406966502,1772368244132,-681.62186763,0.00017972,2]
[406966503,1772368244142,-500.0,0.00017972,2]
[406966504,1772368244152,-150.0,0.00017979,2]
[406966505,1772368244167,-150.0,0.0001798,2]
[406966506,1772368244177,-174.91920001,0.0001799,2]
[406966507,1772368244187,-174.91920001,0.0001799,2]
[406966508,1772368244197,-150.0,0.00017992,2]
[406966509,1772368244206,-150.0,0.00017998,2]
[406966510,1772368244216,-219.8714796,0.00017999,2]
[406966511,1772368244226,-352.47562623,0.00017999,2]
[406966512,1772368244236,-300.0,0.00017999,2]
[406966513,1772368244246,-300.0,0.00017999,2]
[406966514,1772368244256,-150.0,0.00017999,2]
[406966515,1772368244265,-194.60529153,0.00017999,2]
[406966516,1772368244276,-1278.0,0.00018,2]
[406966517,1772368244286,-150.0,0.00018,2]
[406966518,1772368244296,-921.0,0.00018,2]
[406966519,1772368244307,-1211.0,0.00018,2]
[406966520,1772368244322,-3500.0,0.00018,2]
[406966521,1772368244333,-1041.0,0.00018,2]
[406966522,1772368244343,-1340.0,0.00018,2]
[406966523,1772368244354,-250.0,0.00018,2]
[406966524,1772368244365,-1974169.33719206,0.00018,2]
[406966525,1772368244375,-1789270.62010283,0.00018,2]
[406966526,1772368244385,-5004.8971562,0.00018,2]
[406966527,1772368244395,-1000.0,0.00018,2]
[406966528,1772368244405,-733.851,0.00018,2]